fUSD/lending_fUSD_20250319
["ID","MTS","AMOUNT","RATE_DAILY","PERIOD"]
[356386730,1742368240455,-500.0,0.00018148,2]
[356386731,1742368240464,-500.0,0.00018148,2]
[356386732,1742368240474,-500.0,0.00018148,2]
[356386733,1742368240483,-500.0,0.00018148,2]
[356386734,1742368240492,-500.0,0.00018148,2]
[356386735,1742368240502,-500.0,0.00018148,2]
[356386736,1742368240512,-500.0,0.00018148,2]
[356386737,1742368240521,-500.0,0.00018148,2]
[356386738,1742368240532,-500.0,0.00018148,2]
[356386739,1742368240541,-500.0,0.00018148,2]
[356386740,1742368240550,-500.0,0.00018148,2]
[356386741,1742368240560,-500.0,0.00018148,2]
[356386742,1742368240569,-500.0,0.00018148,2]
[356386743,1742368240577,-500.0,0.00018148,2]
[356386744,1742368240587,-500.0,0.00018148,2]
[356386745,1742368240596,-500.0,0.00018148,2]
[356386746,1742368240606,-500.0,0.00018148,2]
[356386747,1742368240615,-500.0,0.00018148,2]
[356386748,1742368240624,-500.0,0.00018148,2]
[356386749,1742368240634,-500.0,0.00018148,2]
[356386750,1742368240643,-500.0,0.00018148,2]
[356386751,1742368240652,-500.0,0.00018148,2]
[356386752,1742368240662,-500.0,0.00018148,2]
[356386753,1742368240672,-879.0,0.00018148,2]
[356386754,1742368240682,-2948.13,0.00018158,2]
[356386755,1742368240691,-2751.0,0.00018191,2]
[356386756,1742368240701,-5068.53766925,0.00018222,2]
[356386757,1742368240717,-974.55526154,0.00018222,2]
[356386758,1742368240728,-2790.0,0.00018222,2]
[356386759,1742368240740,-1776.80682186,0.00018222,2]
[356386765,1742368243448,-1115.0,0.00012028,2]
[356386766,1742368243458,-178.76663238,0.00015028,2]
[356386996,1742369136988,2114.42856325,8e-05,2]
[356387002,1742369167830,8954.70793791,8e-05,2]
[356387004,1742369285699,500.05,0.00022,120]
[356387019,1742369432533,-150.0,0.00012849,2]
[356387020,1742369432543,-250.0,0.00012849,2]
[356387021,1742369432553,-394.188,0.0001285,2]
[356387022,1742369432563,-10.602,0.0001285,2]
[356387023,1742369432575,-1408.398,0.0001285,2]
[356387024,1742369432585,-290.088,0.0001285,2]
[356387025,1742369432594,-1115.0,0.0001285,2]
[356387026,1742369432603,-805.868,0.0001285,2]
[356387027,1742369432613,-641.0,0.0001285,2]
[356387028,1742369432623,-387.2586601,0.000139,2]
[356387029,1742369432632,-150.0,0.00014134,2]
[356387030,1742369432642,-150.0,0.00014134,2]
[356387031,1742369432653,-250.0,0.00014134,2]
[356387032,1742369432663,-250.0,0.00015,2]
[356387033,1742369432672,-2131.379999,0.000151,2]
[356387034,1742369432682,-1219.46,0.00015102,2]
[356387035,1742369432691,-1419.0,0.0001585,2]
[356387036,1742369432701,-1115.0,0.0001585,2]
[356387037,1742369432710,-641.0,0.0001585,2]
[356387038,1742369432720,-1180.62269445,0.000159,2]
[356387039,1742369432731,-300.0,0.00017,2]
[356387040,1742369432741,-2751.0,0.00017072,2]
[356387041,1742369432751,-23900.0,0.00017083,2]
[356387042,1742369432761,-5274.39,0.00017083,2]
[356387043,1742369432770,-1219.46,0.00017366,2]
[356387044,1742369432779,-200.0,0.00017766,2]
[356387045,1742369432789,-429.01863296,0.00017813,2]
[356387046,1742369432799,-150.0,0.00017858,2]
[356387047,1742369432808,-1000.0,0.00017912,2]
[356387048,1742369432817,-500.0,0.00017929,2]
[356387049,1742369432827,-3550.15483389,0.00018,2]
[356387050,1742369432836,-4000.0,0.0001804,19]
[356387051,1742369432846,-3258.78,0.00018086,2]
[356387052,1742369432855,-24520.27095615,0.00018222,2]
[356387053,1742369432865,-200.0,0.00018222,2]
[356387054,1742369432874,-500.0,0.00018222,2]
[356387056,1742369432884,-500.0,0.00018222,2]
[356387058,1742369432893,-500.0,0.00018222,2]
[356387060,1742369432904,-500.0,0.00018222,2]
[356387061,1742369432913,-500.0,0.00018222,2]
[356387062,1742369432923,-500.0,0.00018222,2]
[356387063,1742369432933,-500.0,0.00018222,2]
[356387064,1742369432942,-500.0,0.00018222,2]
[356387065,1742369432951,-500.0,0.00018222,2]
[356387066,1742369432961,-500.0,0.00018222,2]
[356387067,1742369432971,-500.0,0.00018222,2]
[356387068,1742369432981,-500.0,0.00018222,2]
[356387069,1742369432991,-500.0,0.00018222,2]
[356387071,1742369433001,-500.0,0.00018222,2]
[356387073,1742369433011,-500.0,0.00018222,2]
[356387075,1742369433021,-500.0,0.00018222,2]
[356387077,1742369433033,-500.0,0.00018222,2]
[356387078,1742369433043,-500.0,0.00018222,2]
[356387079,1742369433053,-500.0,0.00018222,2]
[356387081,1742369433063,-500.0,0.00018222,2]
[356387082,1742369433073,-500.0,0.00018222,2]
[356387083,1742369433083,-3433.48944923,0.000183,2]
[356387084,1742369433092,-200.0,0.00018404,2]
[356387085,1742369433102,-154.4726,0.00018531,2]
[356387086,1742369433112,-2302.52280651,0.00018538,2]
[356387087,1742369433122,-200.0,0.00018588,2]
[356387088,1742369433131,-157.61,0.000186,2]
[356387089,1742369433141,-153.54367012,0.00018631,2]
[356387090,1742369433152,-22643.10617827,0.00018631,2]
[356387091,1742369433162,-208.4,0.00018638,2]
[356387092,1742369433172,-200.0,0.00018765,2]
[356387093,1742369433182,-200.0,0.00018774,2]
[356387094,1742369433191,-1115.0,0.0001885,2]
[356387095,1742369433201,-500.28911471,0.00018973,2]
[356387096,1742369433211,-350.0,0.00019,2]
[356387097,1742369433221,-77464.52622024,0.00019,2]
[356387098,1742369433231,-969.91,0.00019,2]
[356387099,1742369433240,-2000.0,0.0001944,2]
[356387100,1742369433250,-1219.46,0.0001963,2]
[356387101,1742369433260,-2103.28,0.00019817,2]
[356387102,1742369433271,-2302.52280649,0.00019827,2]
[356387103,1742369433281,-250.0,0.00020068,2]
[356387104,1742369433290,-1000.0,0.00020151,2]
[356387105,1742369433300,-2000.0,0.00020198,2]
[356387106,1742369433310,-1000.0,0.00020204,2]
[356387107,1742369433320,-2500.0,0.00020204,2]
[356387108,1742369433330,-1026.77,0.00020301,2]
[356387109,1742369433340,-82913.81,0.00020304,2]
[356387110,1742369433351,-599.25,0.0002031,2]
[356387111,1742369433361,-4000.0,0.0002054,25]
[356387112,1742369433372,-208.4,0.00020968,2]
[356387113,1742369433386,-400.0,0.00021,2]
[356387114,1742369433397,-2302.52280649,0.00021115,2]
[356387115,1742369433407,-167.1864258,0.00021259,2]
[356387116,1742369433418,-150.0,0.0002129,2]
[356387117,1742369433430,-1149.09239238,0.0002156,2]
[356387118,1742369433441,-200.0,0.0002166,2]
[356387119,1742369433452,-1115.0,0.0002185,2]
[356387120,1742369433463,-1219.46,0.00021894,2]
[356387121,1742369433474,-1000.0,0.0002239,2]
[356387122,1742369433484,-2302.52280649,0.00022404,2]
[356387123,1742369433494,-150.0,0.0002266,2]
[356387124,1742369433503,-450.0,0.00023,2]
[356387125,1742369433513,-4000.0,0.0002304,30]
[356387126,1742369433523,-4951.0125,0.00023159,2]
[356387127,1742369433533,-208.4,0.00023298,2]
[356387128,1742369433543,-1144.12119965,0.00023501,10]
[356387129,1742369433554,-2302.52280649,0.00023692,2]
[356387130,1742369433564,-243.12,0.00023836,2]
[356387131,1742369433573,-999.999999,0.000241,2]
[356387132,1742369433583,-1219.46,0.00024157,2]
[356387133,1742369433593,-1000.0,0.00024629,2]
[356387134,1742369433603,-1000.0,0.00024658,2]
[356387135,1742369433613,-150.0,0.00024658,2]
[356387136,1742369433623,-159.91,0.00024712,30]
[356387137,1742369433633,-173.201,0.00024796,8]
[356387138,1742369433643,-1881.121,0.00024796,8]
[356387139,1742369433655,-35119.8092218,0.000248,3]
[356387140,1742369433665,-1115.0,0.0002485,2]
[356387141,1742369433675,-2302.52280649,0.00024981,2]
[356387142,1742369433685,-500.0,0.00025,2]
[356387143,1742369433694,-202.75,0.00025155,2]
[356387144,1742369433704,-150.0,0.00025306,2]
[356387145,1742369433713,-17559.9046109,0.0002553,3]
[356387146,1742369433723,-4000.0,0.0002554,35]
[356387147,1742369433733,-208.4,0.00025628,120]
[356387148,1742369433743,-150.0,0.00025955,2]
[356387149,1742369433753,-2302.52280649,0.00026269,2]
[356387150,1742369433762,-1219.46,0.00026421,2]
[356387151,1742369433772,-150.0,0.00026604,2]
[356387152,1742369433782,-501.49,0.00026849,2]
[356387153,1742369433792,-293.29,0.00026849,2]
[356387154,1742369433801,-1000.0,0.00026868,2]
[356387155,1742369433811,-550.0,0.00027,2]
[356387156,1742369433821,-150.0,0.00027253,2]
[356387157,1742369433831,-2302.52280649,0.00027558,2]
[356387158,1742369433841,-726.461,0.0002785,2]
[356387159,1742369433850,-150.0,0.00027902,2]
[356387160,1742369433860,-208.4,0.00027957,120]
[356387161,1742369433871,-4000.0,0.0002804,41]
[356387162,1742369433883,-233.0,0.000283,2]
[356387163,1742369433894,-368.0,0.000283,2]
[356387164,1742369433904,-150.0,0.00028551,2]
[356387165,1742369433914,-1219.46,0.00028685,2]
[356387166,1742369433924,-2302.52280649,0.00028846,2]
[356387167,1742369433933,-600.0,0.00029,2]
[356387168,1742369433944,-159.91,0.00029191,30]
[356387169,1742369433953,-150.0,0.000292,2]
[356387170,1742369433963,-150.0,0.00029849,2]
[356387171,1742369433973,-683.0,0.00029868,5]
[356387172,1742369433983,-4573.0,0.00029897,14]
[356387173,1742369433992,-17559.9046109,0.0002999,3]
[356387174,1742369434001,-14979.50166179,0.0003,2]
[356387175,1742369434010,-11581.06053774,0.0003,120]
[356387176,1742369434019,-154.12056113,0.0003,120]
[356387177,1742369434029,-4499.999999,0.0003,2]
[356387178,1742369434038,-311.77545704,0.0003,2]
[356387179,1742369434051,-815.85989262,0.0003,2]
[356387180,1742369434063,-3625.2591778,0.0003,2]
[356387181,1742369434074,-1030.019148,0.0003,2]
[356387182,1742369434083,-212.0,0.0003,2]
[356387183,1742369434093,-1084.63371354,0.00030035,2]
[356387186,1742369438496,-155.619,0.0001285,2]
[356387187,1742369438506,-289.3259,0.00018531,2]
[356387188,1742369438516,-269.47416759,0.00018631,2]
[356387218,1742369441050,-3699.8258525,0.00018631,2]
[356387220,1742369441060,-1000.0,0.000189,2]
[356387222,1742369441069,-751.0,0.000283,2]
[356387224,1742369441078,-1267.7341475,0.00030035,2]
[356387227,1742369441094,-1435.7055609,0.00030035,2]
[356387305,1742369443377,-346.04444721,0.00030035,2]
[356387307,1742369443387,-4134.11786913,0.00030046,2]
[356387308,1742369443398,-48.18872433,0.00030057,2]
[356387311,1742369443642,-279.09938607,0.00030057,2]
[356387452,1742369446589,-151.0,0.00014854,2]
[356387453,1742369446599,-151.0,0.00017854,2]
[356387454,1742369446609,-500.0,0.00020204,2]
[356387455,1742369446618,-29.0,0.00020204,2]
[356387459,1742369857724,465.43736531,0.00021,120]
[356387485,1742370631750,-621.93356594,0.00014756,2]
[356387486,1742370631762,-166.66666668,0.00014756,2]
[356387487,1742370631772,-350.0,0.00014818,2]
[356387488,1742370631782,-641.0,0.00014856,2]
[356387489,1742370631791,-631.19975738,0.00014856,2]
[356387490,1742370631805,-1403.80024262,0.00014856,2]
[356387491,1742370631814,-571.0,0.00014856,2]
[356387492,1742370631824,-1419.0,0.00014856,2]
[356387493,1742370631834,-544.598,0.00014856,2]
[356387494,1742370631843,-150.0,0.00014856,2]
[356387495,1742370631854,-151.547,0.00014856,2]
[356387496,1742370631863,-190.039,0.00014856,2]
[356387497,1742370631873,-250.0,0.00015,2]
[356387498,1742370631884,-350.0,0.00015007,2]
[356387499,1742370631902,-216.33373554,0.00015497,2]
[356387500,1742370631913,-374.35003829,0.000159,2]
[356387501,1742370631923,-150.0,0.00016192,2]
[356387502,1742370631933,-150.0,0.00016231,2]
[356387503,1742370631943,-150.0,0.00016232,2]
[356387504,1742370631953,-216.33373554,0.00016239,2]
[356387506,1742370631963,-766.95,0.00016239,2]
[356387508,1742370631972,-150.0,0.00016258,2]
[356387510,1742370631981,-350.0,0.00016258,2]
[356387512,1742370631991,-166.66666666,0.00016699,2]
[356387514,1742370632000,-166.02,0.00016712,2]
[356387516,1742370632009,-300.0,0.00017,2]
[356387518,1742370632019,-621.93356594,0.00017755,3]
[356387519,1742370632031,-550.0,0.00017855,2]
[356387521,1742370632041,-641.0,0.00017856,2]
[356387524,1742370632050,-2035.0,0.00017856,2]
[356387525,1742370632060,-1419.0,0.00017856,2]
[356387528,1742370632069,-150.0,0.00017856,2]
[356387529,1742370632078,-151.0,0.00017856,2]
[356387531,1742370632088,-157.09,0.000186,2]
[356387532,1742370632097,-166.66666666,0.00018641,2]
[356387533,1742370632107,-6358.11754203,0.00018741,2]
[356387534,1742370632119,-547.0,0.00018929,5]
[356387535,1742370632128,-547.0,0.00018929,5]
[356387536,1742370632138,-548.0,0.00018929,5]
[356387537,1742370632147,-547.0,0.00018929,5]
[356387538,1742370632157,-935.0,0.00018944,2]
[356387539,1742370632171,-350.0,0.00019,2]
[356387540,1742370632180,-191.0,0.00020105,2]
[356387541,1742370632190,-457.4644,0.00020164,2]
[356387542,1742370632200,-500.0,0.00020203,2]
[356387543,1742370632210,-500.0,0.00020203,2]
[356387544,1742370632220,-393.62853556,0.00020203,2]
[356387545,1742370632230,-500.0,0.00020204,2]
[356387546,1742370632239,-500.0,0.00020204,2]
[356387547,1742370632249,-500.0,0.00020204,2]
[356387548,1742370632259,-500.0,0.00020204,2]
[356387549,1742370632268,-500.0,0.00020204,2]
[356387550,1742370632278,-500.0,0.00020204,2]
[356387551,1742370632288,-500.0,0.00020204,2]
[356387552,1742370632298,-500.0,0.00020204,2]
[356387553,1742370632308,-500.0,0.00020204,2]
[356387554,1742370632317,-500.0,0.00020204,2]
[356387555,1742370632327,-500.0,0.00020204,2]
[356387556,1742370632337,-500.0,0.00020204,2]
[356387557,1742370632347,-500.0,0.00020204,2]
[356387558,1742370632356,-500.0,0.00020204,2]
[356387559,1742370632366,-500.0,0.00020204,2]
[356387560,1742370632376,-500.0,0.00020204,2]
[356387561,1742370632386,-500.0,0.00020204,2]
[356387562,1742370632395,-500.0,0.00020204,2]
[356387563,1742370632405,-500.0,0.00020204,2]
[356387564,1742370632414,-500.0,0.00020204,2]
[356387565,1742370632424,-500.0,0.00020204,2]
[356387566,1742370632435,-500.0,0.00020204,2]
[356387567,1742370632444,-500.0,0.00020204,2]
[356387568,1742370632454,-500.0,0.00020204,2]
[356387569,1742370632464,-500.0,0.00020204,2]
[356387570,1742370632473,-500.0,0.00020204,2]
[356387571,1742370632483,-500.0,0.00020204,2]
[356387572,1742370632492,-500.0,0.00020204,2]
[356387573,1742370632502,-500.0,0.00020204,2]
[356387574,1742370632511,-500.0,0.00020204,2]
[356387575,1742370632521,-500.0,0.00020204,2]
[356387576,1742370632531,-500.0,0.00020204,2]
[356387577,1742370632540,-500.0,0.00020204,2]
[356387578,1742370632550,-500.0,0.00020204,2]
[356387579,1742370632559,-500.0,0.00020204,2]
[356387580,1742370632569,-500.0,0.00020204,2]
[356387581,1742370632581,-500.0,0.00020204,2]
[356387582,1742370632592,-500.0,0.00020204,2]
[356387583,1742370632601,-500.0,0.00020204,2]
[356387584,1742370632611,-500.0,0.00020204,2]
[356387585,1742370632620,-500.0,0.00020204,2]
[356387586,1742370632630,-500.0,0.00020204,2]
[356387587,1742370632639,-500.0,0.00020204,2]
[356387588,1742370632649,-500.0,0.00020204,2]
[356387589,1742370632659,-500.0,0.00020204,2]
[356387590,1742370632669,-500.0,0.00020204,2]
[356387591,1742370632679,-500.0,0.00020204,2]
[356387592,1742370632688,-500.0,0.00020204,2]
[356387593,1742370632697,-500.0,0.00020204,2]
[356387594,1742370632706,-500.0,0.00020204,2]
[356387595,1742370632716,-500.0,0.00020204,2]
[356387596,1742370632725,-500.0,0.00020204,2]
[356387597,1742370632735,-500.0,0.00020204,2]
[356387598,1742370632745,-500.0,0.00020204,2]
[356387599,1742370632756,-500.0,0.00020204,2]
[356387600,1742370632766,-500.0,0.00020204,2]
[356387601,1742370632776,-500.0,0.00020204,2]
[356387602,1742370632785,-500.0,0.00020204,2]
[356387603,1742370632797,-500.0,0.00020204,2]
[356387604,1742370632806,-500.0,0.00020204,2]
[356387605,1742370632816,-500.0,0.00020204,2]
[356387606,1742370632826,-500.0,0.00020204,2]
[356387607,1742370632836,-500.0,0.00020204,2]
[356387608,1742370632847,-500.0,0.00020204,2]
[356387609,1742370632857,-500.0,0.00020204,2]
[356387610,1742370632867,-500.0,0.00020204,2]
[356387611,1742370632876,-500.0,0.00020204,2]
[356387612,1742370632885,-500.0,0.00020204,2]
[356387613,1742370632895,-500.0,0.00020204,2]
[356387614,1742370632905,-500.0,0.00020204,2]
[356387615,1742370632914,-500.0,0.00020204,2]
[356387616,1742370632924,-500.0,0.00020204,2]
[356387617,1742370632934,-500.0,0.00020204,2]
[356387618,1742370632944,-500.0,0.00020204,2]
[356387619,1742370632953,-500.0,0.00020204,2]
[356387620,1742370632963,-500.0,0.00020204,2]
[356387621,1742370632972,-500.0,0.00020204,2]
[356387622,1742370632982,-500.0,0.00020204,2]
[356387623,1742370632992,-500.0,0.00020204,2]
[356387624,1742370633002,-500.0,0.00020204,2]
[356387625,1742370633294,-500.0,0.00020204,2]
[356387626,1742370633304,-500.0,0.00020204,2]
[356387627,1742370633314,-500.0,0.00020204,2]
[356387628,1742370633323,-500.0,0.00020204,2]
[356387629,1742370633333,-500.0,0.00020204,2]
[356387630,1742370633343,-500.0,0.00020204,2]
[356387631,1742370633352,-500.0,0.00020204,2]
[356387632,1742370633364,-500.0,0.00020204,2]
[356387633,1742370633373,-500.0,0.00020204,2]
[356387634,1742370633383,-500.0,0.00020204,2]
[356387635,1742370633393,-500.0,0.00020204,2]
[356387636,1742370633402,-500.0,0.00020204,2]
[356387637,1742370633413,-500.0,0.00020204,2]
[356387638,1742370633423,-500.0,0.00020204,2]
[356387639,1742370633432,-500.0,0.00020204,2]
[356387640,1742370633441,-500.0,0.00020204,2]
[356387641,1742370633451,-500.0,0.00020204,2]
[356387642,1742370633460,-500.0,0.00020204,2]
[356387643,1742370633470,-500.0,0.00020204,2]
[356387644,1742370633480,-500.0,0.00020204,2]
[356387645,1742370633489,-504.97780799,0.00020273,2]
[356387646,1742370633499,-456.98664085,0.00020273,2]
[356387647,1742370633508,-356.60709018,0.00020273,2]
[356387648,1742370633518,-150.79556384,0.00020273,2]
[356387649,1742370633527,-219.97,0.00020352,2]
[356387650,1742370633536,-1061.25097519,0.0002058,2]
[356387651,1742370633546,-641.0,0.00020856,2]
[356387652,1742370633555,-179.967,0.00020856,2]
[356387653,1742370633564,-1419.0,0.00020856,2]
[356387654,1742370633573,-151.0,0.00020856,2]
[356387655,1742370633583,-400.0,0.00021,2]
[356387656,1742370633594,-484.19495974,0.000214,2]
[356387657,1742370633603,-450.0,0.00023,2]
[356387658,1742370633613,-5550.0,0.000233,5]
[356387659,1742370633623,-883.81,0.00023331,2]
[356387660,1742370633632,-309.91,0.00023649,2]
[356387661,1742370633642,-2432.47,0.00023702,2]
[356387662,1742370633652,-151.0,0.00023856,2]
[356387663,1742370633662,-202.6,0.0002393,2]
[356387664,1742370633672,-152.13,0.00024658,2]
[356387665,1742370633681,-1000.0,0.00024749,2]
[356387666,1742370633691,-1729.887,0.00024788,8]
[356387667,1742370633700,-171.747,0.00024788,8]
[356387668,1742370633710,-2751.0,0.00024939,2]
[356387669,1742370633720,-1709.20607285,0.00024944,2]
[356387670,1742370633730,-11455.64408851,0.00025,15]
[356387671,1742370633740,-500.0,0.00025,2]
[356387672,1742370633749,-500.05,0.00025,120]
[356387673,1742370633762,-200.0,0.000253,2]
[356387674,1742370633772,-162.74,0.00025424,2]
[356387675,1742370633782,-150.0,0.00025451,2]
[356387676,1742370633791,-152.13,0.00025479,2]
[356387677,1742370633802,-1000.0,0.00025523,2]
[356387678,1742370633812,-883.81,0.00025595,2]
[356387679,1742370633821,-159.91,0.00025602,30]
[356387680,1742370633831,-23900.0,0.00025763,2]
[356387681,1742370633842,-152.92,0.00025841,2]
[356387682,1742370633852,-13267.95,0.00026026,2]
[356387683,1742370633862,-176.63,0.00026204,2]
[356387684,1742370633872,-224.69,0.00026236,120]
[356387685,1742370633882,-500.0,0.00026256,2]
[356387686,1742370633892,-152.13,0.00026301,2]
[356387687,1742370633902,-336.73786267,0.00026492,2]
[356387688,1742370633912,-200.0,0.0002662,2]
[356387689,1742370633922,-2000.0,0.00026711,2]
[356387690,1742370633932,-267.744,0.00026749,2]
[356387691,1742370633942,-539.6694,0.00026749,2]
[356387692,1742370633952,-300.0,0.00026776,2]
[356387693,1742370633961,-424.55,0.00026849,2]
[356387694,1742370633971,-600.0,0.00026944,2]
[356387695,1742370633981,-550.0,0.00027,2]
[356387696,1742370633991,-2000.0,0.00027031,120]
[356387697,1742370634001,-152.13,0.00027123,2]
[356387698,1742370634011,-320.49,0.00027136,2]
[356387699,1742370634021,-3039.8114,0.00027302,2]
[356387700,1742370634031,-530.4538,0.00027302,2]
[356387701,1742370634041,-250.0,0.00027402,2]
[356387702,1742370634051,-883.81,0.00027859,2]
[356387703,1742370634061,-152.13,0.00027945,2]
[356387704,1742370634071,-429.748507,0.00028128,2]
[356387705,1742370634081,-429.748507,0.000284,2]
[356387706,1742370634092,-429.748507,0.00028603,2]
[356387707,1742370634102,-1000.0,0.00028714,2]
[356387708,1742370634112,-152.13,0.00028767,2]
[356387709,1742370634122,-429.748507,0.00028932,2]
[356387710,1742370634132,-600.0,0.00029,2]
[356387711,1742370634142,-167.1864258,0.00029155,4]
[356387712,1742370634152,-429.748507,0.00029297,2]
[356387713,1742370634163,-429.748507,0.00029482,2]
[356387714,1742370634173,-152.13,0.00029589,2]
[356387715,1742370634183,-368.0,0.000296,2]
[356387716,1742370634194,-751.0,0.000296,2]
[356387717,1742370634204,-233.0,0.000296,2]
[356387718,1742370634215,-2089.07,0.00029616,2]
[356387719,1742370634225,-429.748509,0.00029684,2]
[356387720,1742370634235,-230.25228073,0.00029957,2]
[356387721,1742370634245,-230.25228064,0.00029976,2]
[356387722,1742370634255,-230.25228064,0.00029995,2]
[356387723,1742370634265,-10000.0,0.0003,15]
[356387724,1742370634275,-1000.0,0.0003,120]
[356387725,1742370634285,-1032.0,0.0003,10]
[356387726,1742370634296,-51358.23,0.0003,2]
[356387727,1742370634306,-230.25228064,0.00030014,2]
[356387728,1742370634316,-3998.57837075,0.00030019,2]
[356387729,1742370634326,-326.08034849,0.00030019,2]
[356387730,1742370634336,-2500.0,0.00030019,2]
[356387731,1742370634346,-175.40629472,0.0003003,2]
[356387732,1742370634355,-221.1045,0.0003003,2]
[356387733,1742370634365,-3998.57837066,0.00030031,2]
[356387734,1742370634375,-2157.57602634,0.00030032,2]
[356387735,1742370634385,-3002.4425,0.00030032,2]
[356387736,1742370634394,-1913.6831,0.00030032,2]
[356387737,1742370634405,-230.25228064,0.00030033,2]
[356387738,1742370634415,-200.0,0.00030039,2]
[356387739,1742370634425,-3998.57837066,0.00030043,2]
[356387740,1742370634435,-230.25228064,0.00030052,2]
[356387741,1742370634445,-3998.57837066,0.00030055,2]
[356387742,1742370634455,-156.0,0.00030057,7]
[356387743,1742370634464,-156.0,0.00030057,7]
[356387744,1742370634475,-156.0,0.00030057,7]
[356387745,1742370634484,-156.0,0.00030057,7]
[356387746,1742370634493,-276.44211337,0.00030057,7]
[356387747,1742370634503,-167.72444917,0.00030057,7]
[356387748,1742370634512,-1843.8761,0.00030057,45]
[356387749,1742370634523,-27310.0337722,0.00030064,2]
[356387750,1742370634532,-3998.57837066,0.00030067,2]
[356387751,1742370634544,-230.25228064,0.00030071,2]
[356387752,1742370634553,-3998.57837066,0.0003008,2]
[356387753,1742370634562,-230.25228064,0.0003009,2]
[356387754,1742370634571,-3998.57837066,0.00030092,2]
[356387755,1742370634581,-5000.0,0.00030098,3]
[356387756,1742370634591,-2232.61204684,0.00030104,2]
[356387766,1742370637603,-335.57531739,0.00030104,2]
[356387767,1742370637619,-1430.39100643,0.00030104,2]
[356387768,1742370637629,-230.25228064,0.00030109,2]
[356387769,1742370637639,-44.1107941,0.00030116,2]
[356387770,1742370637650,-886.16936274,0.00030116,2]
[356387771,1742370638132,-3068.29821382,0.00030116,2]
[356387772,1742370638145,-3039.24741677,0.00030119,2]
[356387773,1742370638158,-294.58371542,0.00030119,2]
[356387905,1742370639731,-1399.79399091,0.00030119,2]
[356387906,1742370639789,-3249.95340702,0.00030119,2]
[356387907,1742370639802,-3464.68824217,0.00030119,2]
[356387908,1742370639846,-10906.81012829,0.00030119,2]
[356387909,1742370639909,-2004.69357214,0.00030119,2]
[356387910,1742370639922,-558.93122625,0.00030119,2]
[356387911,1742370639933,-969.93441918,0.00030119,2]
[356387912,1742370640080,-2256.50655973,0.00030119,2]
[356387913,1742370640091,-405.562,0.00030119,2]
[356387914,1742370640103,-934.39159631,0.00030119,2]
[356387915,1742370640114,-702.47844533,0.00030119,2]
[356387916,1742370640125,-3594.43905136,0.00030119,2]
[356387917,1742370640140,-1431.37412263,0.00030119,2]
[356387922,1742370642611,-282.22400001,0.00030119,2]
[356387925,1742370642623,-386.4901369,0.00030119,2]
[356387926,1742370642634,-392.53922624,0.00030119,2]
[356387927,1742370642645,-545.755,0.00030119,2]
[356387928,1742370642656,-1086.48280957,0.00030119,2]
[356387929,1742370642668,-562.94029799,0.00030119,2]
[356387930,1742370642680,-835.04991627,0.00030119,2]
[356387931,1742370642692,-2305.68935329,0.00030119,2]
[356387934,1742370643728,-284.74638608,0.00030119,2]
[356387935,1742370643742,-447.27153168,0.00030119,2]
[356387936,1742370643762,-4750.90913375,0.00030119,2]